[Event "December 19 Early 2023"]
[Site "https://www.chess.com"]
[Date "2023.12.19"]
[Round "3"]
[White "Ter-Sahakyan, Samvel"]
[Black "Zemach, Roee"]
[Result "1-0"]
[Board "29"]
[TimeControl "180+1"]
[WhiteFideId "13302531"]
[BlackFideId "2818531"]
[WhiteElo "2556"]
[BlackElo "2227"]
[WhiteTeam "ARM"]
[BlackTeam "ISR"]
[WhiteClock "0:00:17"]
[BlackClock "0:00:12"]

1. d4 {[%clk 0:02:59]}  d5 {[%clk 0:02:54]} 2. c4 {[%clk 0:02:59]}  e6 {[%clk 0:02:54]} 3. Nf3 {[%clk 0:02:58]}  a6 {[%clk 0:02:54]} 4. Bg5 {[%clk 0:02:56]}  Be7 {[%clk 0:02:54]} 5. h4 {[%clk 0:02:53]}  h6 {[%clk 0:02:54]} 6. Bxe7 {[%clk 0:02:52]}  Qxe7 {[%clk 0:02:53]} 7. Nbd2 {[%clk 0:02:52]}  Nf6 {[%clk 0:02:54]} 8. g3 {[%clk 0:02:52]}  O-O {[%clk 0:02:54]} 9. Bg2 {[%clk 0:02:52]}  b6 {[%clk 0:02:54]} 10. O-O {[%clk 0:02:50]}  Bb7 {[%clk 0:02:55]} 11. Rc1 {[%clk 0:02:47]}  Rc8 {[%clk 0:02:48]} 12. cxd5 {[%clk 0:02:37]}  exd5 {[%clk 0:02:47]} 13. e3 {[%clk 0:02:25]}  Nbd7 {[%clk 0:02:45]} 14. Nb1 {[%clk 0:02:19]}  c5 {[%clk 0:02:45]} 15. Nc3 {[%clk 0:02:19]}  Rd8 {[%clk 0:02:35]} 16. Re1 {[%clk 0:02:06]}  Rac8 {[%clk 0:02:35]} 17. Re2 {[%clk 0:02:06]}  Ne4 {[%clk 0:02:21]} 18. Rec2 {[%clk 0:01:58]}  Ndf6 {[%clk 0:02:19]} 19. Ne5 {[%clk 0:01:55]}  Nxc3 {[%clk 0:02:09]} 20. Rxc3 {[%clk 0:01:53]}  c4 {[%clk 0:02:09]} 21. g4 {[%clk 0:01:34]}  b5 {[%clk 0:01:59]} 22. g5 {[%clk 0:01:34]}  hxg5 {[%clk 0:01:59]} 23. hxg5 {[%clk 0:01:35]}  Ne4 {[%clk 0:01:59]} 24. Bxe4 {[%clk 0:01:35]}  dxe4 {[%clk 0:02:00]} 25. Qh5 {[%clk 0:01:31]}  g6 {[%clk 0:01:58]} 26. Qh4 {[%clk 0:01:28]}  Rd5 {[%clk 0:01:40]} 27. Kg2 {[%clk 0:01:25]}  Rxe5 {[%clk 0:01:36]} 28. dxe5 {[%clk 0:01:25]}  Qxe5 {[%clk 0:01:37]} 29. Rd1 {[%clk 0:01:21]}  Qf5 {[%clk 0:01:18]} 30. Qf4 {[%clk 0:00:48]}  Qxf4 {[%clk 0:01:15]} 31. exf4 {[%clk 0:00:48]}  e3+ {[%clk 0:00:59]} 32. Kg3 {[%clk 0:00:47]}  exf2 {[%clk 0:00:50]} 33. Kxf2 {[%clk 0:00:47]}  Be4 {[%clk 0:00:45]} 34. Rd4 {[%clk 0:00:44]}  Bf5 {[%clk 0:00:41]} 35. b3 {[%clk 0:00:36]}  Be6 {[%clk 0:00:39]} 36. Rc1 {[%clk 0:00:26]}  Rc5 {[%clk 0:00:34]} 37. Ke3 {[%clk 0:00:22]}  a5 {[%clk 0:00:33]} 38. bxc4 {[%clk 0:00:21]}  Bxc4 {[%clk 0:00:32]} 39. a4 {[%clk 0:00:21]}  Rf5 {[%clk 0:00:21]} 40. axb5 {[%clk 0:00:19]}  Bxb5 {[%clk 0:00:22]} 41. Rc8+ {[%clk 0:00:17]}  Kg7 {[%clk 0:00:12]} 42. Rdd8 {[%clk 0:00:17]} 1-0

[Event "December 19 Early 2023"]
[Site "https://www.chess.com"]
[Date "2023.12.19"]
[Round "3"]
[White "Baskakov, Egor"]
[Black "Munkhgal, Gombosuren"]
[Result "1-0"]
[Board "30"]
[TimeControl "180+1"]
[WhiteFideId "24197866"]
[BlackFideId "4901266"]
[WhiteElo "2225"]
[BlackElo "2519"]
[WhiteTeam "RUS"]
[BlackTeam "MGL"]
[WhiteClock "0:00:34"]
[BlackClock "0:00:00"]

1. e4 {[%clk 0:03:00]}  e6 {[%clk 0:03:00]} 2. Nc3 {[%clk 0:03:00]}  d5 {[%clk 0:03:00]} 3. g3 {[%clk 0:03:01]}  Nf6 {[%clk 0:02:59]} 4. Bg2 {[%clk 0:03:01]}  d4 {[%clk 0:02:59]} 5. Nce2 {[%clk 0:03:01]}  e5 {[%clk 0:02:59]} 6. d3 {[%clk 0:03:01]}  c5 {[%clk 0:02:58]} 7. h3 {[%clk 0:03:02]}  Nc6 {[%clk 0:02:59]} 8. f4 {[%clk 0:03:02]}  Bd6 {[%clk 0:02:59]} 9. Nf3 {[%clk 0:03:03]}  Qc7 {[%clk 0:02:51]} 10. O-O {[%clk 0:03:03]}  Bd7 {[%clk 0:02:50]} 11. fxe5 {[%clk 0:02:54]}  Nxe5 {[%clk 0:02:50]} 12. Nxe5 {[%clk 0:02:55]}  Bxe5 {[%clk 0:02:50]} 13. Bf4 {[%clk 0:02:56]}  O-O {[%clk 0:02:46]} 14. Qd2 {[%clk 0:02:51]}  Rfe8 {[%clk 0:02:43]} 15. g4 {[%clk 0:02:51]}  c4 {[%clk 0:02:36]} 16. Ng3 {[%clk 0:02:42]}  c3 {[%clk 0:02:34]} 17. bxc3 {[%clk 0:02:42]}  dxc3 {[%clk 0:02:34]} 18. Qc1 {[%clk 0:02:31]}  Bxf4 {[%clk 0:02:31]} 19. Rxf4 {[%clk 0:02:32]}  Be6 {[%clk 0:02:28]} 20. Qe3 {[%clk 0:02:20]}  Qb6 {[%clk 0:02:12]} 21. Qxb6 {[%clk 0:01:48]}  axb6 {[%clk 0:02:12]} 22. e5 {[%clk 0:01:49]}  Nd5 {[%clk 0:01:56]} 23. Re4 {[%clk 0:01:24]}  Ra3 {[%clk 0:01:51]} 24. Ne2 {[%clk 0:01:20]}  Rea8 {[%clk 0:01:51]} 25. Kf2 {[%clk 0:01:04]}  g5 {[%clk 0:01:47]} 26. Rc4 {[%clk 0:00:55]}  Rxa2 {[%clk 0:01:26]} 27. Rxa2 {[%clk 0:00:52]}  Rxa2 {[%clk 0:01:26]} 28. Bxd5 {[%clk 0:00:49]}  Bxd5 {[%clk 0:01:24]} 29. Rxc3 {[%clk 0:00:48]}  Bc6 {[%clk 0:01:22]} 30. Nd4 {[%clk 0:00:47]}  Bd7 {[%clk 0:00:19]} 31. Rc7 {[%clk 0:00:44]}  Be6 {[%clk 0:00:19]} 32. Nxe6 {[%clk 0:00:41]}  fxe6 {[%clk 0:00:20]} 33. Ke3 {[%clk 0:00:41]}  Ra5 {[%clk 0:00:17]} 34. Ke4 {[%clk 0:00:39]}  Ra4+ {[%clk 0:00:18]} 35. d4 {[%clk 0:00:39]}  Ra3 {[%clk 0:00:17]} 36. Re7 {[%clk 0:00:38]}  Rxh3 {[%clk 0:00:15]} 37. Rxe6 {[%clk 0:00:39]}  Kf7 {[%clk 0:00:15]} 38. Rxb6 {[%clk 0:00:38]}  Rg3 {[%clk 0:00:08]} 39. Kf5 {[%clk 0:00:37]}  h6 {[%clk 0:00:06]} 40. Rxb7+ {[%clk 0:00:37]}  Ke8 {[%clk 0:00:07]} 41. Ke6 {[%clk 0:00:36]}  Kd8 {[%clk 0:00:07]} 42. d5 {[%clk 0:00:37]}  Rxg4 {[%clk 0:00:07]} 43. d6 {[%clk 0:00:37]}  Kc8 {[%clk 0:00:07]} 44. Rc7+ {[%clk 0:00:36]}  Kb8 {[%clk 0:00:06]} 45. c4 {[%clk 0:00:34]}  Rf4 {[%clk 0:00:05]} 46. c5 {[%clk 0:00:33]}  g4 {[%clk 0:00:06]} 47. c6 {[%clk 0:00:33]}  g3 {[%clk 0:00:07]} 48. Rb7+ {[%clk 0:00:33]}  Ka8 {[%clk 0:00:06]} 49. Rg7 {[%clk 0:00:34]}  Rf8 {[%clk 0:00:01]} 50. Kd7 {[%clk 0:00:34]}  h5 {[%clk 0:00:01]} 51. Rxg3 {[%clk 0:00:34]}  h4 {[%clk 0:00:00]} 52. Rh3 {[%clk 0:00:34]} 1-0

[Event "December 19 Early 2023"]
[Site "https://www.chess.com"]
[Date "2023.12.19"]
[Round "3"]
[White "Fromm, Marius"]
[Black "Shevchenko, Kirill"]
[Result "0-1"]
[Board "31"]
[TimeControl "180+1"]
[WhiteFideId "12993190"]
[BlackFideId "14129574"]
[WhiteElo "2335"]
[BlackElo "2603"]
[WhiteTeam "GER"]
[BlackTeam "ROU"]
[WhiteClock "0:00:00"]
[BlackClock "0:00:06"]

1. e4 {[%clk 0:03:00]}  c5 {[%clk 0:02:50]} 2. Nf3 {[%clk 0:03:01]}  Nc6 {[%clk 0:02:50]} 3. Bb5 {[%clk 0:03:01]}  Nf6 {[%clk 0:02:50]} 4. d3 {[%clk 0:02:53]}  Qa5+ {[%clk 0:02:49]} 5. Nc3 {[%clk 0:02:53]}  Nd4 {[%clk 0:02:50]} 6. Bc4 {[%clk 0:02:30]}  b5 {[%clk 0:02:49]} 7. Bb3 {[%clk 0:02:07]}  d6 {[%clk 0:02:32]} 8. Bd2 {[%clk 0:02:04]}  Bg4 {[%clk 0:01:38]} 9. Ne2 {[%clk 0:01:39]}  Qb6 {[%clk 0:01:20]} 10. Nfxd4 {[%clk 0:01:29]}  cxd4 {[%clk 0:01:21]} 11. O-O {[%clk 0:01:29]}  e5 {[%clk 0:00:54]} 12. a4 {[%clk 0:01:28]}  bxa4 {[%clk 0:00:52]} 13. Bxa4+ {[%clk 0:01:25]}  Bd7 {[%clk 0:00:52]} 14. c3 {[%clk 0:01:15]}  dxc3 {[%clk 0:00:46]} 15. Nxc3 {[%clk 0:01:16]}  Qb7 {[%clk 0:00:33]} 16. Bg5 {[%clk 0:01:12]}  Be7 {[%clk 0:00:33]} 17. Bxf6 {[%clk 0:01:11]}  Bxf6 {[%clk 0:00:33]} 18. Nd5 {[%clk 0:01:11]}  Bd8 {[%clk 0:00:33]} 19. Qg4 {[%clk 0:01:02]}  g6 {[%clk 0:00:24]} 20. b4 {[%clk 0:00:38]}  Bxa4 {[%clk 0:00:20]} 21. Rxa4 {[%clk 0:00:39]}  O-O {[%clk 0:00:21]} 22. g3 {[%clk 0:00:23]}  f5 {[%clk 0:00:21]} 23. Qe2 {[%clk 0:00:17]}  Bb6 {[%clk 0:00:21]} 24. Kg2 {[%clk 0:00:14]}  Bd4 {[%clk 0:00:20]} 25. Ra2 {[%clk 0:00:08]}  Rf7 {[%clk 0:00:20]} 26. f3 {[%clk 0:00:07]}  Raf8 {[%clk 0:00:18]} 27. Rc2 {[%clk 0:00:06]}  g5 {[%clk 0:00:12]} 28. g4 {[%clk 0:00:05]}  fxg4 {[%clk 0:00:10]} 29. f4 {[%clk 0:00:04]}  exf4 {[%clk 0:00:05]} 30. Qxg4 {[%clk 0:00:04]}  f3+ {[%clk 0:00:05]} 31. Kh1 {[%clk 0:00:02]}  f2 {[%clk 0:00:06]} 32. Qxg5+ {[%clk 0:00:00]}  Rg7 {[%clk 0:00:06]} 0-1

[Event "December 19 Early 2023"]
[Site "https://www.chess.com"]
[Date "2023.12.19"]
[Round "3"]
[White "Steinberg, Nitzan"]
[Black "Masague Artero, Guerau"]
[Result "1-0"]
[Board "34"]
[TimeControl "180+1"]
[WhiteFideId "2801795"]
[BlackFideId "32098952"]
[WhiteElo "2486"]
[BlackElo "2253"]
[WhiteTeam "ISR"]
[BlackTeam "ESP"]
[WhiteClock "0:00:01"]
[BlackClock "0:00:03"]

1. e4 {[%clk 0:03:00]}  Nc6 {[%clk 0:02:59]} 2. Nf3 {[%clk 0:03:00]}  d6 {[%clk 0:03:00]} 3. d4 {[%clk 0:03:00]}  Nf6 {[%clk 0:03:00]} 4. Nc3 {[%clk 0:03:00]}  g6 {[%clk 0:03:01]} 5. Bb5 {[%clk 0:02:58]}  a6 {[%clk 0:03:00]} 6. Bxc6+ {[%clk 0:02:57]}  bxc6 {[%clk 0:03:01]} 7. h3 {[%clk 0:02:57]}  Bg7 {[%clk 0:03:01]} 8. O-O {[%clk 0:02:55]}  O-O {[%clk 0:03:02]} 9. Re1 {[%clk 0:02:55]}  Rb8 {[%clk 0:03:01]} 10. b3 {[%clk 0:02:45]}  c5 {[%clk 0:02:59]} 11. e5 {[%clk 0:02:39]}  Nd7 {[%clk 0:02:58]} 12. Bg5 {[%clk 0:02:27]}  h6 {[%clk 0:02:22]} 13. Bh4 {[%clk 0:02:25]}  g5 {[%clk 0:01:54]} 14. Bg3 {[%clk 0:02:25]}  cxd4 {[%clk 0:01:51]} 15. Nxd4 {[%clk 0:02:25]}  Bb7 {[%clk 0:01:46]} 16. Nf5 {[%clk 0:02:09]}  Nxe5 {[%clk 0:01:31]} 17. Qh5 {[%clk 0:01:33]}  e6 {[%clk 0:01:07]} 18. Nxh6+ {[%clk 0:01:21]}  Bxh6 {[%clk 0:01:08]} 19. Qxh6 {[%clk 0:01:22]}  Ng6 {[%clk 0:01:08]} 20. Ne4 {[%clk 0:01:14]}  Bxe4 {[%clk 0:01:07]} 21. Rxe4 {[%clk 0:01:15]}  Qf6 {[%clk 0:01:03]} 22. Rae1 {[%clk 0:01:14]}  Rb5 {[%clk 0:00:55]} 23. Rg4 {[%clk 0:01:02]}  Qg7 {[%clk 0:00:55]} 24. Qh5 {[%clk 0:00:54]}  Qh7 {[%clk 0:00:55]} 25. Qxh7+ {[%clk 0:00:51]}  Kxh7 {[%clk 0:00:56]} 26. Ra4 {[%clk 0:00:51]}  a5 {[%clk 0:00:50]} 27. c4 {[%clk 0:00:51]}  Rf5 {[%clk 0:00:36]} 28. f3 {[%clk 0:00:51]}  Rb8 {[%clk 0:00:31]} 29. Rc1 {[%clk 0:00:44]}  Rb4 {[%clk 0:00:29]} 30. Rxb4 {[%clk 0:00:30]}  axb4 {[%clk 0:00:30]} 31. c5 {[%clk 0:00:31]}  dxc5 {[%clk 0:00:12]} 32. Bxc7 {[%clk 0:00:30]}  Nf4 {[%clk 0:00:13]} 33. Kf1 {[%clk 0:00:19]}  Rd5 {[%clk 0:00:06]} 34. Bxf4 {[%clk 0:00:14]}  gxf4 {[%clk 0:00:07]} 35. Ke2 {[%clk 0:00:14]}  Kg6 {[%clk 0:00:07]} 36. Rd1 {[%clk 0:00:11]}  Rd4 {[%clk 0:00:06]} 37. Rc1 {[%clk 0:00:04]}  Rd5 {[%clk 0:00:06]} 38. Rc4 {[%clk 0:00:04]}  e5 {[%clk 0:00:06]} 39. Rc1 {[%clk 0:00:03]}  Kg5 {[%clk 0:00:06]} 40. Rd1 {[%clk 0:00:01]}  Kh4 {[%clk 0:00:03]} 41. Rxd5 {[%clk 0:00:01]} 1-0

[Event "December 19 Early 2023"]
[Site "https://www.chess.com"]
[Date "2023.12.19"]
[Round "3"]
[White "Iskusnyh, Sergei"]
[Black "Zakhartsov, Vladimir"]
[Result "0-1"]
[Board "35"]
[TimeControl "180+1"]
[WhiteFideId "4120027"]
[BlackFideId "4145097"]
[WhiteElo "2455"]
[BlackElo "2448"]
[WhiteTeam "RUS"]
[BlackTeam "RUS"]
[WhiteClock "0:00:51"]
[BlackClock "0:01:17"]

1. d4 {[%clk 0:03:00]}  Nf6 {[%clk 0:02:59]} 2. c4 {[%clk 0:03:00]}  e6 {[%clk 0:03:00]} 3. g3 {[%clk 0:03:00]}  d5 {[%clk 0:02:59]} 4. Bg2 {[%clk 0:03:00]}  Bb4+ {[%clk 0:02:59]} 5. Nd2 {[%clk 0:02:58]}  O-O {[%clk 0:02:56]} 6. Nf3 {[%clk 0:02:58]}  dxc4 {[%clk 0:02:56]} 7. Qc2 {[%clk 0:02:57]}  c5 {[%clk 0:02:40]} 8. dxc5 {[%clk 0:02:39]}  c3 {[%clk 0:02:36]} 9. bxc3 {[%clk 0:02:36]}  Bxc5 {[%clk 0:02:36]} 10. O-O {[%clk 0:02:36]}  Nc6 {[%clk 0:02:36]} 11. Nb3 {[%clk 0:02:32]}  Be7 {[%clk 0:02:35]} 12. Nfd4 {[%clk 0:02:30]}  Bd7 {[%clk 0:02:28]} 13. Nxc6 {[%clk 0:02:24]}  Bxc6 {[%clk 0:02:29]} 14. Bxc6 {[%clk 0:02:24]}  bxc6 {[%clk 0:02:29]} 15. c4 {[%clk 0:02:23]}  Nd7 {[%clk 0:02:24]} 16. Be3 {[%clk 0:02:18]}  Qc7 {[%clk 0:02:23]} 17. Rad1 {[%clk 0:02:16]}  Nb6 {[%clk 0:02:18]} 18. Rd3 {[%clk 0:02:06]}  Rfd8 {[%clk 0:02:16]} 19. Rfd1 {[%clk 0:02:06]}  Rxd3 {[%clk 0:02:16]} 20. Rxd3 {[%clk 0:01:57]}  h6 {[%clk 0:02:14]} 21. Kg2 {[%clk 0:01:54]}  Rc8 {[%clk 0:02:07]} 22. h4 {[%clk 0:01:46]}  Qb7 {[%clk 0:02:06]} 23. Kg1 {[%clk 0:01:32]}  Qa6 {[%clk 0:02:05]} 24. Bxb6 {[%clk 0:01:30]}  axb6 {[%clk 0:02:04]} 25. Rd7 {[%clk 0:01:29]}  Bf6 {[%clk 0:02:02]} 26. c5 {[%clk 0:01:24]}  b5 {[%clk 0:01:46]} 27. Nd2 {[%clk 0:01:21]}  Ra8 {[%clk 0:01:39]} 28. Ne4 {[%clk 0:01:16]}  Qxa2 {[%clk 0:01:38]} 29. Nxf6+ {[%clk 0:01:14]}  gxf6 {[%clk 0:01:37]} 30. Qe4 {[%clk 0:01:13]}  Qc4 {[%clk 0:01:22]} 31. Qxc6 {[%clk 0:01:02]}  Ra1+ {[%clk 0:01:20]} 32. Kg2 {[%clk 0:00:59]}  Qxe2 {[%clk 0:01:18]} 33. Qf3 {[%clk 0:00:51]}  Rg1+ {[%clk 0:01:17]} 0-1

[Event "December 19 Early 2023"]
[Site "https://www.chess.com"]
[Date "2023.12.19"]
[Round "3"]
[White "Taboas Rodriguez, Daniel"]
[Black "Kamsky, Gata"]
[Result "1/2-1/2"]
[Board "37"]
[TimeControl "180+1"]
[WhiteFideId "2208466"]
[BlackFideId "2000024"]
[WhiteElo "2365"]
[BlackElo "2660"]
[WhiteTeam "ESP"]
[BlackTeam "USA"]
[WhiteClock "0:00:36"]
[BlackClock "0:00:18"]

1. d4 {[%clk 0:03:00]}  f5 {[%clk 0:02:53]} 2. Bg5 {[%clk 0:02:59]}  g6 {[%clk 0:02:51]} 3. Nd2 {[%clk 0:02:58]}  Bg7 {[%clk 0:02:51]} 4. e4 {[%clk 0:02:59]}  fxe4 {[%clk 0:02:44]} 5. Nxe4 {[%clk 0:02:59]}  d5 {[%clk 0:02:37]} 6. Nc5 {[%clk 0:02:59]}  b6 {[%clk 0:02:32]} 7. Nb3 {[%clk 0:02:59]}  Nh6 {[%clk 0:02:20]} 8. Nf3 {[%clk 0:02:56]}  Nf7 {[%clk 0:02:20]} 9. Bf4 {[%clk 0:02:46]}  c5 {[%clk 0:02:15]} 10. c3 {[%clk 0:02:45]}  c4 {[%clk 0:02:14]} 11. Nbd2 {[%clk 0:02:44]}  Nc6 {[%clk 0:02:11]} 12. Be2 {[%clk 0:02:43]}  O-O {[%clk 0:02:10]} 13. O-O {[%clk 0:02:43]}  b5 {[%clk 0:02:08]} 14. a3 {[%clk 0:02:38]}  a5 {[%clk 0:02:06]} 15. Re1 {[%clk 0:02:37]}  Bf5 {[%clk 0:01:56]} 16. h3 {[%clk 0:02:28]}  b4 {[%clk 0:01:50]} 17. axb4 {[%clk 0:02:27]}  axb4 {[%clk 0:01:50]} 18. Nf1 {[%clk 0:02:27]}  b3 {[%clk 0:01:16]} 19. Ne3 {[%clk 0:02:27]}  e6 {[%clk 0:01:04]} 20. Qd2 {[%clk 0:02:10]}  Qd7 {[%clk 0:00:55]} 21. Nxf5 {[%clk 0:01:57]}  exf5 {[%clk 0:00:53]} 22. Ng5 {[%clk 0:01:57]}  Nd6 {[%clk 0:00:42]} 23. Bxd6 {[%clk 0:01:52]}  Qxd6 {[%clk 0:00:42]} 24. Rxa8 {[%clk 0:01:47]}  Rxa8 {[%clk 0:00:41]} 25. Bf3 {[%clk 0:01:47]}  Bh6 {[%clk 0:00:34]} 26. h4 {[%clk 0:01:46]}  Rd8 {[%clk 0:00:31]} 27. Qe2 {[%clk 0:01:44]}  Bxg5 {[%clk 0:00:31]} 28. hxg5 {[%clk 0:01:44]}  Kf7 {[%clk 0:00:29]} 29. g3 {[%clk 0:01:42]}  Qe7 {[%clk 0:00:29]} 30. Qd2 {[%clk 0:01:41]}  Qd6 {[%clk 0:00:24]} 31. Kg2 {[%clk 0:01:42]}  Kg7 {[%clk 0:00:24]} 32. Qe3 {[%clk 0:01:40]}  Rd7 {[%clk 0:00:22]} 33. Qe8 {[%clk 0:01:38]}  Rd8 {[%clk 0:00:20]} 34. Qe3 {[%clk 0:01:26]}  Rd7 {[%clk 0:00:20]} 35. Qe8 {[%clk 0:01:13]}  Rd8 {[%clk 0:00:20]} 36. Qe6 {[%clk 0:01:13]}  Rd7 {[%clk 0:00:20]} 37. Qe3 {[%clk 0:01:05]}  Re7 {[%clk 0:00:20]} 38. Qd2 {[%clk 0:01:04]}  Rxe1 {[%clk 0:00:19]} 39. Qxe1 {[%clk 0:01:05]}  Qe7 {[%clk 0:00:19]} 40. Qd2 {[%clk 0:01:04]}  Qd6 {[%clk 0:00:19]} 41. Qe3 {[%clk 0:01:05]}  Ne7 {[%clk 0:00:19]} 42. Kf1 {[%clk 0:01:00]}  Kf7 {[%clk 0:00:19]} 43. Ke2 {[%clk 0:01:00]}  Nc8 {[%clk 0:00:17]} 44. Bg2 {[%clk 0:00:57]}  Nb6 {[%clk 0:00:17]} 45. f4 {[%clk 0:00:54]}  Qe7 {[%clk 0:00:17]} 46. Qxe7+ {[%clk 0:00:51]}  Kxe7 {[%clk 0:00:17]} 47. Kd2 {[%clk 0:00:51]}  Kd6 {[%clk 0:00:17]} 48. Bf3 {[%clk 0:00:52]}  Na4 {[%clk 0:00:16]} 49. Kc1 {[%clk 0:00:52]}  Nb6 {[%clk 0:00:17]} 50. Kd2 {[%clk 0:00:52]}  Nc8 {[%clk 0:00:16]} 51. Be2 {[%clk 0:00:49]}  Ke6 {[%clk 0:00:16]} 52. Bf3 {[%clk 0:00:50]}  Nd6 {[%clk 0:00:17]} 53. Ke3 {[%clk 0:00:48]}  Ne4 {[%clk 0:00:16]} 54. Bxe4 {[%clk 0:00:43]}  fxe4 {[%clk 0:00:16]} 55. g4 {[%clk 0:00:43]}  Kf7 {[%clk 0:00:16]} 56. Kf2 {[%clk 0:00:44]}  Kg7 {[%clk 0:00:16]} 57. Kg3 {[%clk 0:00:36]}  h6 {[%clk 0:00:16]} 58. Kf2 {[%clk 0:00:33]}  hxg5 {[%clk 0:00:16]} 59. fxg5 {[%clk 0:00:34]}  Kf7 {[%clk 0:00:16]} 60. Ke3 {[%clk 0:00:34]}  Ke6 {[%clk 0:00:17]} 61. Kf2 {[%clk 0:00:34]}  Kd6 {[%clk 0:00:17]} 62. Ke3 {[%clk 0:00:34]}  Ke6 {[%clk 0:00:18]} 63. Kd2 {[%clk 0:00:35]}  Kd6 {[%clk 0:00:18]} 64. Ke3 {[%clk 0:00:36]}  Ke6 {[%clk 0:00:18]} 1/2-1/2

[Event "December 19 Early 2023"]
[Site "https://www.chess.com"]
[Date "2023.12.19"]
[Round "3"]
[White "Truskavetsky, Alexandr"]
[Black "Jumabayev, Rinat"]
[Result "1-0"]
[Board "38"]
[TimeControl "180+1"]
[WhiteFideId "14108577"]
[BlackFideId "13702661"]
[WhiteElo "2210"]
[BlackElo "2561"]
[WhiteTeam "RUS"]
[BlackTeam "KAZ"]
[WhiteClock "0:01:25"]
[BlackClock "0:00:00"]

1. d4 {[%clk 0:03:00]}  Nf6 {[%clk 0:02:57]} 2. c4 {[%clk 0:03:00]}  e6 {[%clk 0:02:57]} 3. Nc3 {[%clk 0:03:01]}  Bb4 {[%clk 0:02:58]} 4. e3 {[%clk 0:03:00]}  O-O {[%clk 0:02:58]} 5. Bd3 {[%clk 0:03:00]}  c5 {[%clk 0:02:58]} 6. Ne2 {[%clk 0:03:00]}  b6 {[%clk 0:02:48]} 7. O-O {[%clk 0:02:59]}  Bb7 {[%clk 0:02:47]} 8. Qc2 {[%clk 0:02:59]}  d5 {[%clk 0:02:37]} 9. cxd5 {[%clk 0:02:59]}  exd5 {[%clk 0:02:35]} 10. dxc5 {[%clk 0:02:54]}  bxc5 {[%clk 0:02:33]} 11. a3 {[%clk 0:02:54]}  Ba5 {[%clk 0:02:32]} 12. Rd1 {[%clk 0:02:53]}  Nbd7 {[%clk 0:02:28]} 13. Nf4 {[%clk 0:02:49]}  Rc8 {[%clk 0:02:26]} 14. Ncxd5 {[%clk 0:02:48]}  Nxd5 {[%clk 0:01:53]} 15. Nxd5 {[%clk 0:02:47]}  Qg5 {[%clk 0:01:49]} 16. e4 {[%clk 0:02:45]}  Qh4 {[%clk 0:01:47]} 17. g3 {[%clk 0:02:44]}  Qh3 {[%clk 0:01:27]} 18. Ne7+ {[%clk 0:02:36]}  Kh8 {[%clk 0:01:26]} 19. Nxc8 {[%clk 0:02:36]}  Ne5 {[%clk 0:01:23]} 20. Be2 {[%clk 0:02:33]}  Rxc8 {[%clk 0:01:17]} 21. Bf4 {[%clk 0:02:16]}  Ng4 {[%clk 0:00:48]} 22. Bxg4 {[%clk 0:02:14]}  Qxg4 {[%clk 0:00:49]} 23. Rd5 {[%clk 0:01:44]}  Bxd5 {[%clk 0:00:27]} 24. exd5 {[%clk 0:01:44]}  c4 {[%clk 0:00:28]} 25. d6 {[%clk 0:01:43]}  Bb6 {[%clk 0:00:27]} 26. Rd1 {[%clk 0:01:42]}  h6 {[%clk 0:00:23]} 27. Kg2 {[%clk 0:01:38]}  Qe6 {[%clk 0:00:18]} 28. Qc3 {[%clk 0:01:32]}  Kg8 {[%clk 0:00:15]} 29. Re1 {[%clk 0:01:30]}  Qd5+ {[%clk 0:00:15]} 30. Qf3 {[%clk 0:01:29]}  Qf5 {[%clk 0:00:07]} 31. Re5 {[%clk 0:01:26]}  Qf6 {[%clk 0:00:06]} 32. d7 {[%clk 0:01:25]}  Rd8 {[%clk 0:00:04]} 33. Re8+ {[%clk 0:01:25]}  Kh7 {[%clk 0:00:05]} 34. Qe4+ {[%clk 0:01:26]}  g6 {[%clk 0:00:05]} 35. Be5 {[%clk 0:01:26]}  Qf4 {[%clk 0:00:00]} 36. Qxf4 {[%clk 0:01:25]} 1-0

[Event "December 19 Early 2023"]
[Site "https://www.chess.com"]
[Date "2023.12.19"]
[Round "3"]
[White "Harutjunyan, Gevorg"]
[Black "Parpiev, Isaak"]
[Result "0-1"]
[Board "39"]
[TimeControl "180+1"]
[WhiteFideId "13300873"]
[BlackFideId "34281576"]
[WhiteElo "2436"]
[BlackElo "2183"]
[WhiteTeam "ARM"]
[BlackTeam "RUS"]
[WhiteClock "0:01:02"]
[BlackClock "0:01:58"]

1. e4 {[%clk 0:03:00]}  e5 {[%clk 0:02:59]} 2. Nf3 {[%clk 0:03:01]}  Nc6 {[%clk 0:03:00]} 3. d4 {[%clk 0:03:01]}  exd4 {[%clk 0:03:00]} 4. Nxd4 {[%clk 0:03:02]}  Nf6 {[%clk 0:03:00]} 5. Nxc6 {[%clk 0:03:01]}  bxc6 {[%clk 0:03:00]} 6. Bd3 {[%clk 0:03:02]}  d5 {[%clk 0:02:59]} 7. exd5 {[%clk 0:03:03]}  cxd5 {[%clk 0:02:58]} 8. O-O {[%clk 0:03:03]}  Be7 {[%clk 0:02:57]} 9. c4 {[%clk 0:03:02]}  d4 {[%clk 0:02:58]} 10. Nd2 {[%clk 0:03:00]}  O-O {[%clk 0:02:56]} 11. Nf3 {[%clk 0:02:56]}  c5 {[%clk 0:02:55]} 12. Re1 {[%clk 0:02:53]}  Bb7 {[%clk 0:02:52]} 13. Bf4 {[%clk 0:02:53]}  h6 {[%clk 0:02:51]} 14. Ne5 {[%clk 0:02:42]}  Bd6 {[%clk 0:02:44]} 15. Bg3 {[%clk 0:02:34]}  Qc7 {[%clk 0:02:42]} 16. Ng4 {[%clk 0:02:32]}  Nxg4 {[%clk 0:02:34]} 17. Qxg4 {[%clk 0:02:33]}  Bxg3 {[%clk 0:02:30]} 18. hxg3 {[%clk 0:02:32]}  Rae8 {[%clk 0:02:22]} 19. Re2 {[%clk 0:02:10]}  Rxe2 {[%clk 0:02:20]} 20. Qxe2 {[%clk 0:02:09]}  Qc6 {[%clk 0:02:20]} 21. f3 {[%clk 0:02:08]}  Re8 {[%clk 0:02:20]} 22. Be4 {[%clk 0:02:04]}  Qg6 {[%clk 0:02:11]} 23. Re1 {[%clk 0:01:33]}  Bxe4 {[%clk 0:02:11]} 24. fxe4 {[%clk 0:01:33]}  Qxg3 {[%clk 0:02:11]} 25. Qf2 {[%clk 0:01:22]}  Qe5 {[%clk 0:02:02]} 26. b3 {[%clk 0:01:16]}  f5 {[%clk 0:02:02]} 27. Rf1 {[%clk 0:01:14]}  fxe4 {[%clk 0:02:00]} 28. Qf7+ {[%clk 0:01:14]}  Kh8 {[%clk 0:02:00]} 29. Qxa7 {[%clk 0:01:11]}  e3 {[%clk 0:02:00]} 30. Qd7 {[%clk 0:01:08]}  e2 {[%clk 0:01:59]} 31. Re1 {[%clk 0:01:08]}  Qe3+ {[%clk 0:01:58]} 32. Kh2 {[%clk 0:01:02]}  d3 {[%clk 0:01:58]} 0-1